{"text_format":"1","workbook":"xlsx","n_sheets":1,"sheets":["FatB Approved Division Splits 2"],"not_rendered":{"charts":0,"images":0,"macros":0,"external_links":0,"defined_names":26,"comments":0,"pivot_tables":0},"unopened":[],"bounds":{"document_bytes":16777216,"sheet_cells":100000,"rows_first":2000,"rows_last":500,"rows_between":2000,"halvings":0,"cell_chars":16384,"cell_head_chars":4096},"cells_cut":0,"cells_raw":0,"read":"whole","date_system":"1900"}

{"sheet":"FatB Approved Division Splits 2","index":0,"n_rows":100,"n_cols":15,"rows_kept":100,"cut":false,"hidden":false,"merged":[[2,103,2,104],[4,93,24,93],[25,93,45,93],[34,75,43,75],[14,75,23,75],[4,75,13,75],[4,84,18,84],[2,85,2,86],[2,94,2,95],[4,102,31,102],[7,57,9,57],[10,57,12,57],[10,66,15,66],[13,57,15,57],[4,57,6,57],[4,66,9,66],[16,57,18,57],[16,66,21,66],[19,57,21,57],[19,84,33,84],[22,66,27,66],[24,75,33,75],[1,67,1,68],[2,58,2,59],[2,76,2,77]]}
["Division","Team Name","Team Time","Web or Dec","Breakout Time","AX Div","Between Teams","Between Div","Division","Round Robins","Number of Heats","Format","Races per Team","Races per Division","Total Races"]
[1,"Norwest Thunderdogs 1",16.808,"Web",null,null,null,null,1,3,"Best of 5","Regular",6,9,54]
[1,"Unleashed Power",17.3,"Dec",null,0.99200000000000088,0.49200000000000088,null,2,3,"Best of 5","Handicap",6,9]
[1,"Canberra X-traterestrials",17.8,"Dec",null,null,0.5,null,3,3,"Best of 5","Handicap",6,9]
[2,"Tidal Wave",18.757000000000001,"Web",18.257000000000001,null,0.95700000000000074,0.95700000000000074,"Open 1",3,"Best of 5","Handicap",6,9]
[2,"Norwest Thunderdogs 4",19,"Dec",18.5,1.4429999999999978,0.24299999999999855,null,"Open 2",2,"Best of 5","Regular",6,12]
[2,"Scallywags",20.2,"Dec",19.7,null,1.1999999999999993,null,"Open 3",6,"Best of 5","Regular",6,6]
[3,"Norwest Thunderdogs 6",21.91,"Web",21.41,null,1.7100000000000009,1.7100000000000009,null,null,null,null,"",""]
[3,"City Slickers",22.5,"Dec",22,6.59,0.58999999999999986,null,null,null,null,null,"",""]
[3,"Spud Dogs",28.5,"Dec",28,null,6,null,null,null,null,null,"",""]
["Open 1","Thunderdog Tornado",17.7,"Dec",17.2,null,null,null,null,null,null,null,"",""]
["Open 1","Open Ocean",19.399999999999999,"Dec",18.899999999999999,2.3000000000000007,1.6999999999999993,null,null,null,null,null,"",""]
["Open 1","Unleashed Flash",20,"Dec",19.5,null,0.60000000000000142,null,null,null,null,null,"",""]
["Open 2","Flyball Friends",20.5,"Dec",20,null,0.5,0.5,null,null,null,null,"",""]
["Open 2","We Opened This",20.5,"Dec",20,1.1000000000000014,0,null,null,null,null,null,"",""]
["Open 2","Scallywag True Mates",21.5,"Dec",21,null,1,null,null,null,null,null,"",""]
["Open 2","MAD Flyers",21.6,"Dec",21.1,null,0.10000000000000142,null,null,null,null,null,"",""]
["Open 3","The Panzers",25.5,"Dec",25,null,3.8999999999999986,3.8999999999999986,null,null,null,null,"",""]
["Open 3","Kamikaze Torpedoes",25.8,"Dec",25.3,0.30000000000000071,0.30000000000000071,null,null,null,null,null,"",""]
[null,null,null,null,null,null,null,null,null,null,null,null,"",""]
[null,null,null,null,null,null,null,null,null,null,null,null,{"$f":"IF(I21>0,(COUNTIF($A:$A,I21)-1)*J21,\"\")","v":""},{"$f":"IF(J21=\"\",\"\",COUNTIF(A:A,I21)*(M21)/2)","v":""}]
[null,null,null,null,null,null,null,null,null,null,null,null,"",""]
[null,null,null,null,null,null,null,null,null,null,null,null,"",""]
[null,null,null,null,null,null,null,null,null,null,null,null,"",""]
[null,null,null,null,null,null,null,null,null,null,null,null,"",""]
[null,null,null,null,null,null,null,null,null,null,null,null,"",""]
[null,null,null,null,null,null,null,null,null,null,null,null,"",""]
[null,null,null,null,null,null,null,null,null,null,null,null,"",""]
[null,null,null,null,null,null,null,null,null,null,null,null,"",""]
[null,null,null,null,null,null,null,null,null,null,null,null,"",""]
[null,null,null,null,null,null,null,null,null,null,null,null,"",""]
[null,null,null,null,null,null,null,null,null,null,null,null,"",""]
[null,null,null,null,null,null,null,null,null,null,null,null,"",""]
[null,null,null,null,null,null,null,null,null,null,null,null,"",""]
[null,null,null,null,null,null,null,null,null,null,null,null,"",""]
[null,null,null,null,null,null,null,null,null,null,null,null,"",""]
[null,null,null,null,null,null,null,null,null,null,null,null,"",""]
[null,null,null,null,null,null,null,null,null,null,null,null,"",""]
[null,null,null,null,null,null,null,null,null,null,null,null,"",""]
[null,null,null,null,null,null,null,null,null,null,null,null,"",""]
[null,null,null,null,null,null,null,null,null,null,null,null,""]
[null,null,null,null,null,null,null,null,null,null,null,null,""]
[null,null,null,null,null,null,null,null,null,null,null,null,""]
[null,null,null,null,null,null,null,null,null,null,null,null,""]
[null,null,null,null,null,null,null,null,null,null,null,null,""]
[null,null,null,null,null,null,null,null,null,null,null,null,""]
[null,null,null,null,null,null,null,null,null,null,null,null,""]
[null,null,null,null,null,null,null,null,null,null,null,null,""]
[null,null,null,null,null,null,null,null,null,null,null,null,""]
[null,null,null,null,null,null,null,null,null,null,null,null,""]
[null,null,null,null,null,null,null,null,null,null,null,null,""]
[null,null,null,null,null,null,null,null,null,null,null,null,""]
[null,null,null,null,null,null,null,null,null,null,null,null,""]
[null,null,null,null,null,null,null,null,null,null,null,null,""]
[null,null,null,null,null,null,null,null,null,null,null,null,""]
[null,null,null,null,null,null,null,null,null,null,null,null,""]
[null,null,null,null,null,null,null,null,null,null,null,null,""]
[null,null,null,null,null,null,null,null,null,null,null,null,""]
[null,null,null,null,null,null,null,null,null,null,null,null,""]
[null,null,null,null,null,null,null,null,null,null,null,null,""]
[null,null,null,null,null,null,null,null,null,null,null,null,""]
[null,null,null,null,null,null,null,null,null,null,null,null,""]
[null,null,null,null,null,null,null,null,null,null,null,null,""]
[null,null,null,null,null,null,null,null,null,null,null,null,""]
[null,null,null,null,null,null,null,null,null,null,null,null,""]
[null,null,null,null,null,null,null,null,null,null,null,null,""]
[null,null,null,null,null,null,null,null,null,null,null,null,""]
[null,null,null,null,null,null,null,null,null,null,null,null,""]
[null,null,null,null,null,null,null,null,null,null,null,null,""]
[null,null,null,null,null,null,null,null,null,null,null,null,""]
[null,null,null,null,null,null,null,null,null,null,null,null,{"$f":"IF(I71>0,(COUNTIF($A:$A,I71)-1)*J71,\"\")","v":""}]
[null,null,null,null,null,null,null,null,null,null,null,null,""]
[null,null,null,null,null,null,null,null,null,null,null,null,""]
[null,null,null,null,null,null,null,null,null,null,null,null,""]
[null,null,null,null,null,null,null,null,null,null,null,null,""]
[null,null,null,null,null,null,null,null,null,null,null,null,""]
[null,null,null,null,null,null,null,null,null,null,null,null,""]
[null,null,null,null,null,null,null,null,null,null,null,null,""]
[null,null,null,null,null,null,null,null,null,null,null,null,""]
[null,null,null,null,null,null,null,null,null,null,null,null,""]
[null,null,null,null,null,null,null,null,null,null,null,null,""]
[null,null,null,null,null,null,null,null,null,null,null,null,""]
[null,null,null,null,null,null,null,null,null,null,null,null,""]
[null,null,null,null,null,null,null,null,null,null,null,null,""]
[null,null,null,null,null,null,null,null,null,null,null,null,""]
[null,null,null,null,null,null,null,null,null,null,null,null,""]
[null,null,null,null,null,null,null,null,null,null,null,null,""]
[null,null,null,null,null,null,null,null,null,null,null,null,""]
[null,null,null,null,null,null,null,null,null,null,null,null,""]
[null,null,null,null,null,null,null,null,null,null,null,null,""]
[null,null,null,null,null,null,null,null,null,null,null,null,""]
[null,null,null,null,null,null,null,null,null,null,null,null,""]
[null,null,null,null,null,null,null,null,null,null,null,null,""]
[null,null,null,null,null,null,null,null,null,null,null,null,""]
[null,null,null,null,null,null,null,null,null,null,null,null,""]
[null,null,null,null,null,null,null,null,null,null,null,null,""]
[null,null,null,null,null,null,null,null,null,null,null,null,""]
[null,null,null,null,null,null,null,null,null,null,null,null,""]
[null,null,null,null,null,null,null,null,null,null,null,null,""]
[null,null,null,null,null,null,null,null,null,null,null,null,{"$f":"IF(I100>0,(COUNTIF($A:$A,I100)-1)*J100,\"\")","v":""}]